bitfinex-derivatives/quotes_BTCF0:USTF0_20240917
["timestamp","ask_amount","ask_price","bid_price","bid_amount"]
[1726589519375,0.001,61218.0,61217.0,0.47745056]
[1726589520581,0.001,61218.0,61217.0,0.39578656]
[1726589520879,0.001,61218.0,61217.0,0.47745056]
[1726589521378,0.082663,61218.0,61217.0,0.03498656]
[1726589524481,0.082663,61218.0,61217.0,0.02798656]
[1726589524482,0.164326,61218.0,61217.0,0.02798656]
[1726589524685,0.164326,61218.0,61217.0,0.04098656]
[1726589525473,0.164326,61218.0,61210.0,0.3608]
[1726589525474,0.163344,61211.0,61210.0,0.3608]
[1726589525674,0.353344,61211.0,61210.0,0.3608]
[1726589526284,0.271672,61211.0,61210.0,0.38627418]
[1726589526478,0.353344,61211.0,61210.0,0.38627418]
[1726589527680,0.354344,61211.0,61210.0,0.40027418]
[1726589528287,0.355344,61211.0,61210.0,0.04847418]
[1726589528680,0.716144,61211.0,61210.0,0.04847418]
[1726589528881,0.797816,61211.0,61210.0,0.023]
[1726589529185,0.081688,61199.0,61198.0,0.36325072]
[1726589530186,0.081688,61199.0,61198.0,0.38731147]
[1726589530490,0.082688,61199.0,61198.0,0.39131147]
[1726589530791,0.083688,61199.0,61198.0,0.39431147]
[1726589531286,0.082688,61199.0,61198.0,0.38731147]
[1726589531585,0.002,61199.0,61198.0,0.66600047]
[1726589533482,0.002,61199.0,61198.0,0.65900047]
[1726589533682,0.002,61199.0,61198.0,0.66000047]
[1726589534093,0.081674,61210.0,61198.0,0.65900047]
[1726589534292,0.002,61199.0,61198.0,0.66000047]
[1726589534892,0.001,61199.0,61198.0,0.66000047]
[1726589535095,0.002,61199.0,61198.0,0.66000047]
[1726589536293,0.002,61199.0,61198.0,0.47000047]
[1726589537002,0.001,61199.0,61198.0,0.46900047]
[1726589537195,0.083688,61199.0,61198.0,0.38931147]
[1726589540100,0.165376,61199.0,61198.0,0.38931147]
[1726589540502,0.165376,61199.0,61198.0,0.02851147]
[1726589540503,0.247064,61199.0,61198.0,0.02851147]
[1726589540706,0.607864,61199.0,61198.0,0.00445072]
[1726589541803,0.444488,61199.0,61198.0,0.00445072]
[1726589543800,0.526176,61199.0,61198.0,0.00445072]
[1726589545303,0.526176,61199.0,61198.0,0.002]
[1726589545806,0.165376,61199.0,61198.0,0.002]
[1726589546110,0.655576,61199.0,61198.0,0.002]
[1726589546707,0.737264,61199.0,61198.0,0.002]
[1726589546907,0.655576,61199.0,61198.0,0.002]
[1726589547305,0.081703,61188.0,61187.0,0.081703]
[1726589547611,0.271703,61188.0,61187.0,0.081703]
[1726589547912,0.081707,61185.0,61184.0,0.442508]
[1726589548302,0.081707,61185.0,61180.0,0.25436026]
[1726589548303,0.081712,61181.0,61180.0,0.09305153]
[1726589548507,0.081712,61181.0,61180.0,0.00245153]
[1726589548898,0.163424,61181.0,61180.0,0.02610357]
[1726589549101,0.081712,61181.0,61180.0,0.00245153]
[1726589549303,0.163424,61181.0,61180.0,0.00245153]
[1726589549610,0.081712,61181.0,61180.0,0.00245153]
[1726589550600,0.163424,61181.0,61180.0,0.00245153]
[1726589551008,0.081723,61173.0,61172.0,0.0906]
[1726589551704,0.081723,61173.0,61172.0,0.11394589]
[1726589552100,0.164446,61173.0,61172.0,0.02334589]
[1726589552303,0.081728,61169.0,61168.0,0.00245188]
[1726589552815,0.524256,61169.0,61168.0,0.00245188]
[1726589553002,1.614696,61169.0,61168.0,0.00245188]
[1726589553305,1.614696,61169.0,61158.0,0.3608]
[1726589553306,1.532969,61169.0,61160.0,0.04883603]
[1726589553610,0.442529,61169.0,61160.0,0.07244537]
[1726589553809,0.3608,61169.0,61160.0,0.07244537]
[1726589554122,0.3618,61169.0,61160.0,0.07244537]
[1726589554614,0.081737,61163.0,61160.0,0.07236537]
[1726589554911,0.04083651,61163.0,61160.0,0.02352934]
[1726589555210,0.04083651,61163.0,61159.0,0.13057703]
[1726589555508,0.081738,61162.0,61159.0,0.07288288]
[1726589555708,0.001,61163.0,61159.0,0.07288288]
[1726589556015,0.19,61162.0,61160.0,0.04883603]
[1726589556213,0.081739,61161.0,61160.0,0.04883603]
[1726589556600,0.081739,61161.0,61159.0,0.04883603]
[1726589557414,0.001,61162.0,61159.0,0.07212067]
[1726589557711,0.001,61161.0,61160.0,0.08174]
[1726589558116,0.002,61161.0,61160.0,0.08174]
[1726589558611,0.001,61162.0,61160.0,1.13935603]
[1726589558810,0.081723,61173.0,61161.0,0.19]
[1726589559006,0.081723,61173.0,61160.0,0.6]
[1726589559007,0.19,61178.0,61167.0,0.3608]
[1726589559208,0.08171,61183.0,61174.0,0.3608]
[1726589559406,0.081713,61180.0,61173.0,0.081721]
[1726589559603,0.19,61178.0,61170.0,0.04871974]
[1726589559818,0.19,61178.0,61168.0,0.23951974]
[1726589560109,0.19,61178.0,61171.0,0.081724]
[1726589560110,0.081717,61177.0,61171.0,0.081724]
[1726589560311,0.081716,61178.0,61172.0,0.19]
[1726589560514,0.442516,61178.0,61172.0,0.081723]
[1726589560715,0.19,61176.0,61172.0,0.081723]
[1726589560912,0.271719,61176.0,61168.0,0.26299495]
[1726589561113,0.272723,61173.0,61170.0,0.04871974]
[1726589561320,0.191,61173.0,61170.0,0.04871974]
[1726589561514,0.19,61173.0,61172.0,0.001]
[1726589562112,0.19,61173.0,61170.0,0.04871974]
[1726589562318,0.191,61173.0,61170.0,0.002]
[1726589562617,0.272724,61173.0,61170.0,0.002]
[1726589563011,0.081725,61171.0,61170.0,0.002]
[1726589563721,0.001,61173.0,61170.0,0.002]
[1726589564020,0.002,61173.0,61172.0,0.001]
[1726589564414,0.192,61173.0,61172.0,0.001]
[1726589564623,0.001,61171.0,61170.0,0.001]
[1726589564822,0.082725,61171.0,61170.0,0.001]
[1726589566527,0.001,61171.0,61170.0,0.001]
[1726589566717,0.001,61171.0,61170.0,0.02398848]
[1726589567026,0.002,61173.0,61172.0,0.082724]
[1726589567513,0.001,61173.0,61172.0,0.13044374]
[1726589567823,0.001,61173.0,61172.0,0.0984]
[1726589568921,0.002,61173.0,61172.0,0.0994]
[1726589569444,0.002,61173.0,61172.0,0.14811974]
[1726589569940,0.002,61173.0,61172.0,0.001]
[1726589571335,0.083724,61173.0,61169.0,0.06480873]
[1726589571634,0.083724,61173.0,61172.0,0.0488614]
[1726589571826,0.002,61173.0,61172.0,0.443524]
[1726589572031,0.002,61173.0,61172.0,0.50833273]
[1726589572240,0.001,61173.0,61172.0,0.50833273]
[1726589572436,0.002,61173.0,61172.0,0.3608]
[1726589572739,0.002,61173.0,61170.0,0.06480873]
[1726589573135,0.163454,61170.0,61169.0,0.04987415]
[1726589573336,0.163454,61170.0,61169.0,0.001]
[1726589574141,0.245181,61170.0,61169.0,0.001]
[1726589574831,0.163472,61163.0,61162.0,0.04887415]
[1726589575031,0.081739,61161.0,61159.0,0.04890485]
[1726589575237,0.19,61160.0,61159.0,0.04890485]
[1726589575443,0.27174,61160.0,61159.0,0.04891295]
[1726589575639,0.081743,61158.0,61157.0,0.04891295]
[1726589576440,0.081744,61157.0,61156.0,0.35086222]
[1726589576629,0.081744,61157.0,61156.0,0.07266825]
[1726589576831,0.081744,61157.0,61156.0,0.04890603]
[1726589577243,0.081745,61156.0,61155.0,0.04890603]
[1726589577441,0.271745,61156.0,61155.0,0.072313]
[1726589578039,0.081745,61156.0,61155.0,0.02340697]
[1726589578246,0.081747,61155.0,61153.0,0.00245285]
[1726589578439,0.081748,61154.0,61153.0,0.00245285]
[1726589578831,0.001,61156.0,61153.0,0.02574218]
[1726589579031,0.001,61156.0,61154.0,0.06480873]
[1726589579241,0.001,61156.0,61153.0,0.06726158]
[1726589579436,0.081748,61154.0,61153.0,0.00245285]
[1726589579637,0.164496,61154.0,61153.0,0.00245285]
[1726589579837,0.164496,61154.0,61153.0,0.05137444]
[1726589580041,0.164496,61154.0,61153.0,0.00245285]
[1726589580646,0.163502,61152.0,61151.0,0.04892159]
[1726589580842,0.524302,61152.0,61151.0,0.04892159]
[1726589581237,0.081752,61151.0,61150.0,0.04892159]
[1726589581437,0.271752,61151.0,61150.0,0.04892159]
[1726589581738,0.081753,61150.0,61149.0,0.04892159]
[1726589581935,0.081756,61149.0,61146.0,0.06480873]
[1726589582142,0.081756,61148.0,61147.0,0.06480873]
[1726589582344,0.19,61151.0,61147.0,0.06480873]
[1726589582537,0.271752,61151.0,61150.0,0.04890716]
[1726589582739,0.272752,61151.0,61150.0,0.04890716]
[1726589583134,0.081759,61146.0,61145.0,0.06480873]
[1726589583334,0.08176,61145.0,61144.0,0.06519869]
[1726589583539,0.19,61150.0,61143.0,0.06519869]
[1726589583540,0.081761,61144.0,61143.0,0.06519869]
[1726589583746,0.081763,61143.0,61142.0,0.06519869]
[1726589584247,0.081764,61142.0,61141.0,0.44938734]
[1726589584744,0.081764,61142.0,61141.0,0.38418865]
[1726589585747,0.001,61142.0,61141.0,0.46595365]
[1726589585943,0.001,61142.0,61141.0,1.55663365]
[1726589586151,0.002,61142.0,61141.0,1.55663365]
[1726589586346,0.081748,61154.0,61141.0,1.47486865]
[1726589586546,0.081749,61153.0,61148.0,0.04883848]
[1726589586747,0.081749,61153.0,61149.0,0.0958]
[1726589586940,0.271746,61156.0,61149.0,0.0958]
[1726589587146,0.081747,61155.0,61149.0,0.0958]
[1726589587545,0.3608,61155.0,61149.0,0.0958]
[1726589587943,0.001,61153.0,61149.0,0.0958]
[1726589588347,0.001,61153.0,61149.0,0.4566]
[1726589588653,0.001,61155.0,61154.0,0.081748]
[1726589589352,0.081741,61160.0,61154.0,0.081748]
[1726589589555,0.081741,61160.0,61154.0,0.13057731]
[1726589589942,0.081741,61160.0,61155.0,0.04882931]
[1726589590154,0.081741,61160.0,61154.0,0.13057731]
[1726589590542,0.081741,61160.0,61155.0,0.081747]
[1726589590751,0.19,61159.0,61155.0,0.13057631]
[1726589591452,0.271741,61159.0,61154.0,0.05082931]
[1726589591651,0.081744,61158.0,61154.0,0.05083914]
[1726589592044,0.191,61159.0,61154.0,0.05083914]
[1726589592255,0.191,61159.0,61153.0,0.15303914]
[1726589592256,0.081746,61156.0,61153.0,0.15303914]
[1726589592451,0.081745,61156.0,61155.0,0.002]
[1726589592658,0.271745,61156.0,61155.0,0.002]
[1726589592855,0.19,61156.0,61155.0,0.002]
[1726589593047,0.001,61158.0,61155.0,0.002]
[1726589593553,0.001,61158.0,61157.0,0.081744]
[1726589593955,0.001,61158.0,61155.0,0.002]
[1726589594352,0.001,61158.0,61157.0,0.081744]
[1726589594553,0.001,61159.0,61158.0,0.081743]
[1726589594755,0.19,61164.0,61159.0,0.081741]
[1726589595056,0.19,61164.0,61156.0,0.14663914]
[1726589595057,0.081736,61163.0,61156.0,0.14663914]
[1726589595253,0.081736,61163.0,61156.0,0.0978]
[1726589595449,0.001,61158.0,61156.0,0.0978]
[1726589595647,0.002,61158.0,61155.0,0.08619878]
[1726589595849,0.001,61158.0,61155.0,0.08419878]
[1726589596559,0.002,61158.0,61156.0,0.002]
[1726589597449,0.001,61158.0,61156.0,0.002]
[1726589597853,0.001,61158.0,61156.0,0.083745]
[1726589598356,0.002,61158.0,61157.0,0.081744]
[1726589598866,0.002,61158.0,61157.0,0.13058314]
[1726589599154,0.001,61158.0,61157.0,1.22114341]
[1726589599353,0.5508,61174.0,61157.0,1.09052]
[1726589599554,0.19,61165.0,61160.0,0.04888683]
[1726589599755,0.19,61165.0,61159.0,0.04888683]
[1726589599960,0.19,61165.0,61162.0,0.081737]
[1726589600464,0.19,61170.0,61161.0,0.04888683]
[1726589600757,0.271728,61170.0,61164.0,0.081734]
[1726589601155,0.081729,61169.0,61164.0,0.081734]
[1726589601357,0.08173,61168.0,61163.0,0.04888683]
[1726589601551,0.5508,61170.0,61161.0,0.081738]
[1726589601552,0.081731,61167.0,61162.0,0.04888683]
[1726589601754,0.19,61165.0,61161.0,0.05188683]
[1726589602065,0.19,61165.0,61160.0,0.1219347]
[1726589602265,0.19,61165.0,61164.0,0.003]
[1726589602747,0.19,61165.0,61162.0,0.004]
[1726589602947,0.19,61165.0,61162.0,0.085737]
[1726589603157,0.191,61165.0,61162.0,0.085737]
[1726589603653,0.191,61165.0,61162.0,0.004]
[1726589603857,0.272735,61165.0,61162.0,0.004]
[1726589604166,0.081735,61164.0,61162.0,0.004]
[1726589604366,0.081735,61164.0,61161.0,0.04888683]
[1726589604556,0.081735,61164.0,61160.0,0.17082153]
[1726589604962,0.081736,61163.0,61162.0,0.003]
[1726589605454,0.001,61164.0,61160.0,0.0234347]
[1726589605656,0.081739,61161.0,61160.0,0.04888683]
[1726589606055,0.083735,61164.0,61160.0,0.04888683]
[1726589606760,0.082735,61164.0,61160.0,0.04888683]
[1726589606960,0.001,61163.0,61160.0,0.04888683]
[1726589607165,0.002,61163.0,61162.0,0.003]
[1726589607761,0.001,61163.0,61160.0,0.13362683]
[1726589608065,0.001,61163.0,61160.0,0.05188683]
[1726589608256,0.001,61163.0,61160.0,0.081739]
[1726589608456,0.002,61163.0,61162.0,0.084737]
[1726589608662,0.002,61163.0,61162.0,0.635537]
[1726589608663,0.001,61163.0,61162.0,0.635537]
[1726589608863,0.001,61163.0,61162.0,0.445537]
[1726589609057,0.001,61164.0,61163.0,0.081736]
[1726589609258,0.19,61174.0,61164.0,0.081735]
[1726589609455,0.19,61174.0,61165.0,0.04892108]
[1726589610465,0.081725,61172.0,61164.0,0.13065608]
[1726589610669,0.081725,61172.0,61164.0,0.04892108]
[1726589610863,0.081725,61172.0,61163.0,0.04892108]
[1726589611069,0.081725,61172.0,61165.0,0.081732]
[1726589611270,0.19,61174.0,61165.0,0.081732]
[1726589611271,0.442526,61171.0,61165.0,0.081732]
[1726589611467,0.442526,61171.0,61165.0,0.003]
[1726589611468,0.19,61170.0,61165.0,0.003]
[1726589611659,0.271727,61170.0,61165.0,0.084733]
[1726589611861,0.19,61166.0,61165.0,0.003]
[1726589612068,0.19,61166.0,61163.0,0.003]
[1726589612272,0.081731,61167.0,61163.0,0.003]
[1726589612565,0.19,61171.0,61163.0,0.003]
[1726589612766,0.001,61172.0,61163.0,0.003]
[1726589612767,0.001,61170.0,61163.0,0.003]
[1726589612962,0.081728,61169.0,61163.0,0.084736]
[1726589613364,0.5518,61170.0,61163.0,0.003]
[1726589613558,0.001,61167.0,61163.0,0.003]
[1726589613765,0.081732,61166.0,61165.0,0.003]
[1726589615874,0.081744,61157.0,61156.0,0.04892108]
[1726589616059,0.081744,61157.0,61151.0,0.06511885]
[1726589616060,0.081749,61153.0,61151.0,0.04892108]
[1726589616266,0.081749,61153.0,61149.0,0.04892108]
[1726589616267,0.081751,61152.0,61149.0,0.04892108]
[1726589616471,0.19,61153.0,61149.0,0.04892108]
[1726589616668,0.081748,61154.0,61149.0,0.04892108]
[1726589616865,0.081743,61158.0,61154.0,0.081748]
[1726589617268,0.081744,61157.0,61153.0,0.04892108]
[1726589617569,0.19,61158.0,61152.0,0.04892108]
[1726589617769,0.082748,61154.0,61151.0,0.04892108]
[1726589617971,0.001,61154.0,61151.0,0.04892108]
[1726589618274,0.19,61163.0,61152.0,0.04892108]
[1726589618577,0.19,61163.0,61153.0,0.003]
[1726589618578,0.082745,61157.0,61153.0,0.003]
[1726589618773,0.082745,61157.0,61153.0,0.05192108]
[1726589618774,0.081747,61155.0,61153.0,0.05192108]
[1726589618975,0.081748,61154.0,61153.0,0.003]
[1726589620174,0.08175,61153.0,61149.0,0.04892108]
[1726589620565,0.081752,61152.0,61149.0,0.04892108]
[1726589620767,0.08175,61153.0,61149.0,0.04892108]
[1726589621069,0.081752,61152.0,61150.0,0.04892108]
[1726589621267,0.081752,61151.0,61150.0,0.04892108]
[1726589621770,0.081752,61151.0,61150.0,0.07093751]
[1726589622074,0.081752,61151.0,61150.0,0.02201643]
[1726589622270,0.2009,61152.0,61145.0,0.04892108]
[1726589622475,0.001,61153.0,61147.0,0.081757]
[1726589622670,0.082753,61151.0,61147.0,0.271757]
[1726589622875,0.081755,61149.0,61147.0,0.19]
[1726589623075,0.081755,61149.0,61146.0,0.04892108]
[1726589624071,0.081755,61149.0,61148.0,0.04892108]
[1726589624468,0.081756,61148.0,61147.0,0.04892108]
[1726589624776,0.081757,61147.0,61146.0,0.04892108]
[1726589626377,0.082757,61147.0,61146.0,0.04892108]
[1726589627075,0.082757,61147.0,61145.0,0.04892108]
[1726589627279,0.083757,61147.0,61145.0,0.04892108]
[1726589627582,0.083757,61147.0,61144.0,0.38522732]
[1726589627583,0.083757,61147.0,61144.0,0.4341484]
[1726589628081,0.002,61147.0,61144.0,0.4341484]
[1726589628381,0.08176,61145.0,61144.0,0.38522732]
[1726589629077,0.08176,61145.0,61144.0,0.43414326]
[1726589629579,0.002,61147.0,61144.0,0.38522732]
[1726589629982,0.001,61145.0,61144.0,0.38522732]
[1726589630373,0.08276,61145.0,61144.0,0.38522732]
[1726589630570,0.08376,61145.0,61144.0,0.38522732]
[1726589630774,0.08376,61145.0,61144.0,0.38277434]
[1726589631080,0.002,61145.0,61144.0,0.46453534]
[1726589631384,0.29382711,61159.0,61147.0,0.081756]
[1726589631577,0.081752,61151.0,61147.0,0.081756]
[1726589632682,0.081752,61151.0,61144.0,0.51345128]
[1726589632889,0.081752,61151.0,61144.0,0.38277434]
[1726589633283,0.082752,61151.0,61144.0,0.38277434]
[1726589634172,0.083752,61151.0,61147.0,0.001]
[1726589634579,0.002,61151.0,61149.0,0.3608]
[1726589634886,0.081741,61160.0,61155.0,0.081747]
[1726589635079,0.081741,61160.0,61156.0,0.3608]
[1726589635474,0.183927,61171.0,61157.0,0.19]
[1726589635676,0.081727,61170.0,61163.0,0.442535]
[1726589635880,0.081727,61170.0,61164.0,0.0969]
[1726589636076,0.3608,61173.0,61168.0,0.081728]
[1726589636381,0.185519,61176.0,61164.0,0.0969]
[1726589636382,0.1038,61176.0,61172.0,0.3608]
[1726589637080,0.081719,61176.0,61172.0,0.3608]
[1726589637380,0.2922,61178.0,61172.0,0.3608]
[1726589637381,0.08172,61175.0,61172.0,0.3608]
[1726589637585,0.19,61174.0,61172.0,0.3608]
[1726589638287,0.19,61174.0,61172.0,0.38293571]
[1726589638784,0.193,61174.0,61172.0,0.38293571]
[1726589640587,0.195,61174.0,61172.0,0.38293571]
[1726589640785,0.005,61174.0,61172.0,0.38293571]
[1726589642782,0.005,61174.0,61173.0,0.442523]
[1726589643688,0.271701,61190.0,61183.0,0.081709]
[1726589644392,0.19,61190.0,61184.0,0.081708]
[1726589644787,0.19,61190.0,61181.0,0.19]
[1726589645092,0.081701,61189.0,61182.0,0.081711]
[1726589645290,0.215,61190.0,61182.0,0.081711]
[1726589645982,0.202,61190.0,61184.0,0.3608]
[1726589646180,0.024,61190.0,61189.0,0.442501]
[1726589647183,0.012,61190.0,61189.0,0.442501]
[1726589647988,0.024,61190.0,61189.0,0.443501]
[1726589648593,0.012,61190.0,61189.0,0.443501]
[1726589648789,0.024,61190.0,61189.0,0.634501]
[1726589648981,0.3608,61205.0,61189.0,0.634501]
[1726589649185,0.3608,61205.0,61199.0,0.081688]
[1726589649686,0.3608,61205.0,61197.0,0.4561]
[1726589649982,0.562074,61210.0,61202.0,0.3608]
[1726589650181,0.1931,61210.0,61209.0,0.3608]
[1726589650393,0.081661,61220.0,61209.0,0.5508]
[1726589650394,0.178964,61217.0,61209.0,0.5508]
[1726589650586,0.0973,61217.0,61211.0,0.081672]
[1726589650783,0.02222595,61223.0,61212.0,0.08167]
[1726589651089,0.2025,61224.0,61209.0,0.55312]
[1726589651090,0.5508,61233.0,61217.0,0.19]
[1726589651288,0.5508,61233.0,61225.0,0.19]
[1726589651289,0.081644,61233.0,61225.0,0.19]
[1726589651697,0.081644,61233.0,61222.0,0.3608]
[1726589651882,0.19,61223.0,61222.0,0.3608]
[1726589652083,0.081663,61218.0,61217.0,0.0024502]
[1726589652683,1.253366,61218.0,61217.0,0.0024502]
[1726589652987,1.253366,61218.0,61212.0,0.001]
[1726589652988,0.081669,61213.0,61212.0,0.001]
[1726589653301,0.081669,61213.0,61212.0,0.02259616]
[1726589653490,0.081671,61212.0,61211.0,0.001]
[1726589653790,0.49008,61213.0,61195.0,0.33335114]
[1726589653791,0.19,61215.0,61202.0,0.081684]
[1726589654094,0.19,61207.0,61202.0,0.081684]
[1726589654289,0.19,61207.0,61205.0,0.38511455]
[1726589654890,0.271678,61207.0,61205.0,0.38511455]
[1726589655492,0.272678,61207.0,61205.0,0.40511455]
[1726589656184,0.191,61207.0,61205.0,0.40511455]
[1726589656386,0.001,61207.0,61206.0,0.081679]
[1726589656590,0.081667,61215.0,61206.0,0.081679]
[1726589657096,0.19,61212.0,61205.0,0.40511455]
[1726589657299,0.001,61207.0,61205.0,0.40811455]
[1726589657498,0.081679,61206.0,61205.0,0.40811455]
[1726589657695,0.081679,61206.0,61205.0,0.41011455]
[1726589658199,0.081679,61206.0,61205.0,0.38511455]
[1726589658495,0.081679,61206.0,61205.0,0.39511455]
[1726589658902,0.082679,61206.0,61205.0,0.39511455]
[1726589659107,0.083679,61206.0,61205.0,0.40411455]
[1726589660105,0.002,61206.0,61205.0,0.40411455]
[1726589660804,0.002,61206.0,61205.0,0.40211455]
[1726589661199,0.002,61206.0,61205.0,0.40311455]
[1726589661906,0.083679,61206.0,61205.0,0.40311455]
[1726589662097,0.083679,61206.0,61205.0,0.04431455]
[1726589663201,0.002,61206.0,61205.0,0.04431455]
[1726589663800,0.001,61206.0,61205.0,0.03231455]
[1726589664103,0.002,61206.0,61205.0,0.04131455]
[1726589664407,0.001,61206.0,61205.0,0.03231455]
[1726589664604,0.002,61206.0,61205.0,0.04131455]
[1726589664808,0.083679,61206.0,61205.0,0.04131455]
[1726589665109,0.083679,61206.0,61205.0,0.04031455]
[1726589666904,0.002,61206.0,61205.0,0.03931455]
[1726589667104,0.002,61206.0,61205.0,0.03131455]
[1726589667105,0.001,61206.0,61205.0,0.03131455]
[1726589667317,0.002,61206.0,61205.0,0.04031455]
[1726589667704,0.082679,61206.0,61205.0,0.03231455]
[1726589667903,0.083679,61206.0,61205.0,0.04131455]
[1726589668612,0.002,61206.0,61205.0,0.04131455]
[1726589668907,0.002,61206.0,61205.0,0.03231455]
[1726589668908,0.001,61206.0,61205.0,0.03231455]
[1726589669209,0.002,61206.0,61205.0,0.04131455]
[1726589669609,0.002,61206.0,61205.0,0.1064334]
[1726589669801,0.083679,61206.0,61205.0,0.1064334]
[1726589670599,0.002,61206.0,61205.0,0.1064334]
[1726589671398,0.165358,61206.0,61205.0,0.04131455]
[1726589671602,0.083679,61206.0,61205.0,0.04131455]
[1726589671805,0.082679,61206.0,61205.0,0.0984334]
[1726589672005,0.083679,61206.0,61205.0,0.1064334]
[1726589672203,0.165358,61206.0,61205.0,0.1064334]
[1726589672409,0.165358,61206.0,61205.0,0.10634655]
[1726589672609,0.165358,61206.0,61205.0,0.04131455]
[1726589672800,0.737197,61206.0,61205.0,0.08208745]
[1726589673006,1.337197,61206.0,61205.0,0.017]
[1726589674009,0.737197,61206.0,61205.0,0.016]
[1726589674907,0.736197,61206.0,61205.0,0.008]
[1726589675104,0.735197,61206.0,61205.0,0.006]
[1726589675617,1.357433,61206.0,61205.0,0.006]
[1726589676111,0.245049,61203.0,61202.0,0.06508745]
[1726589676307,0.163368,61202.0,61201.0,0.06508745]
[1726589676504,0.532552,61202.0,61201.0,0.06508745]
[1726589676699,2.959384,61202.0,61195.0,0.00245114]
[1726589676904,1.760868,61202.0,61201.0,0.06517788]
[1726589677108,0.163374,61200.0,61199.0,0.06517788]
[1726589677303,0.245061,61200.0,61199.0,0.06517788]
[1726589677503,0.163376,61199.0,61198.0,0.04887878]
[1726589677704,0.3608,61200.0,61197.0,0.04887878]
[1726589677705,0.245067,61198.0,61197.0,0.04887878]
[1726589678404,0.245067,61198.0,61195.0,0.014]
[1726589678405,0.081692,61196.0,61195.0,0.014]
[1726589678711,0.271689,61198.0,61194.0,0.10419445]
[1726589679015,0.442493,61195.0,61194.0,0.10419445]
[1726589679214,0.442493,61195.0,61194.0,0.02249945]
[1726589679417,0.16339,61194.0,61193.0,0.00245112]
[1726589679616,0.35339,61194.0,61193.0,0.00245112]
[1726589679916,0.081699,61191.0,61190.0,0.408799]
[1726589680714,0.081699,61191.0,61190.0,0.10378582]
[1726589681409,0.082699,61191.0,61190.0,0.11378582]
[1726589681920,0.083699,61191.0,61190.0,0.12578582]
[1726589683521,0.083699,61191.0,61190.0,0.10925955]
[1726589684013,0.083699,61191.0,61190.0,0.04408682]
[1726589684313,0.083699,61191.0,61190.0,0.12578682]
[1726589684517,0.083699,61191.0,61190.0,0.10925467]
[1726589684714,0.083699,61191.0,61190.0,0.04408682]
[1726589685215,0.083699,61191.0,61190.0,0.10925483]
[1726589685425,0.165398,61191.0,61190.0,0.10925483]
[1726589685718,0.165398,61191.0,61190.0,0.04408682]
[1726589686609,0.165398,61191.0,61190.0,0.09296195]
[1726589686809,0.247097,61191.0,61190.0,0.09296195]
[1726589687012,1.337377,61191.0,61190.0,0.022]
[1726589687219,0.163414,61185.0,61184.0,0.04887513]
[1726589687416,0.081708,61184.0,61183.0,0.04887513]
[1726589687611,0.081706,61187.0,61186.0,0.081703]
[1726589687921,0.081706,61187.0,61186.0,0.13056337]
[1726589688409,0.081705,61186.0,61185.0,0.04886037]
[1726589689513,0.082707,61185.0,61184.0,0.06486037]
[1726589689714,0.082707,61185.0,61184.0,0.08749179]
[1726589689910,0.082707,61185.0,61184.0,0.03863142]
[1726589690110,0.081707,61185.0,61184.0,0.03563142]
[1726589690311,0.081707,61185.0,61184.0,0.02263142]
[1726589690518,0.081708,61184.0,61183.0,0.0968]
[1726589690725,0.001,61187.0,61181.0,0.36316]
[1726589690726,0.081711,61182.0,61181.0,0.36316]
[1726589690930,0.082707,61185.0,61181.0,0.3608]
[1726589691217,0.083707,61185.0,61184.0,0.002]
[1726589692025,0.165414,61185.0,61184.0,0.002]
[1726589692813,0.164414,61185.0,61184.0,0.002]
[1726589693316,0.164414,61185.0,61183.0,0.003]
[1726589693317,0.163416,61184.0,61183.0,0.003]
[1726589693517,0.163422,61182.0,61181.0,0.3638]
[1726589693822,0.245133,61182.0,61181.0,0.3638]
[1726589694629,0.245133,61182.0,61181.0,0.3608]
[1726589694824,0.081717,61177.0,61175.0,0.02214865]
[1726589695122,0.16344,61175.0,61174.0,0.10365203]
[1726589696018,0.16344,61175.0,61174.0,0.02413381]
[1726589696220,0.16344,61175.0,61174.0,0.00245203]
[1726589696823,0.271718,61177.0,61168.0,0.3608]
[1726589696824,0.19,61177.0,61168.0,0.3608]
[1726589697022,0.19,61169.0,61166.0,0.081731]
[1726589697222,0.3608,61167.0,61166.0,0.081731]
[1726589697424,0.442532,61167.0,61166.0,0.081731]
[1726589698128,0.081733,61165.0,61164.0,0.11769408]
[1726589698931,0.353466,61165.0,61164.0,0.11769408]
[1726589699531,0.353466,61165.0,61164.0,0.02199408]
[1726589699722,0.08174,61160.0,61158.0,0.081742]
[1726589699925,0.08174,61160.0,61159.0,0.081741]
[1726589700722,0.163482,61159.0,61158.0,0.02217127]
[1726589700925,0.163486,61158.0,61157.0,0.00245237]
[1726589702122,0.081743,61158.0,61157.0,0.00245237]
[1726589702524,0.163486,61158.0,61157.0,0.00245237]
[1726589702922,0.261386,61158.0,61157.0,0.00245237]
[1726589703125,0.357386,61158.0,61157.0,0.00545237]
[1726589703633,0.358386,61158.0,61157.0,0.00845237]
[1726589704732,0.440129,61158.0,61157.0,0.00845237]
[1726589704929,0.440129,61158.0,61157.0,0.006]
[1726589706230,1.040129,61158.0,61157.0,0.006]
[1726589706430,1.530649,61158.0,61157.0,0.006]
[1726589707130,0.440129,61158.0,61157.0,0.006]
[1726589707331,0.95291337,61158.0,61157.0,0.006]
[1726589709029,0.95291337,61158.0,61147.0,0.02178133]
[1726589709030,0.163512,61148.0,61147.0,0.02178133]
[1726589709228,0.163512,61148.0,61145.0,0.00245318]
[1726589709229,0.163518,61146.0,61145.0,0.00245318]